[Event "Titled Tuesday Blitz December 27 Early 2022"]
[White "Albertini, Luca"]
[Black "Tikhonov, Viacheslav"]
[WhiteFideId "847038"]
[BlackFideId "44196407"]
[WhiteElo "2084"]
[BlackElo "2220"]
[Result "0-1"]
[Round "09"]
[TimeControl "180+2"]
[Date "2022.12.27"]
[WhiteClock "0:00:13"]
[BlackClock "0:00:11"]

1. e4 {[%clk 0:03:00]}  c5 {[%clk 0:02:58]} 2. Nf3 {[%clk 0:02:59]}  Nc6 {[%clk 0:02:56]} 3. Bb5 {[%clk 0:02:59]}  g6 {[%clk 0:02:55]} 4. d3 {[%clk 0:02:57]}  Bg7 {[%clk 0:02:55]} 5. O-O {[%clk 0:02:57]}  e5 {[%clk 0:02:54]} 6. Ng5 {[%clk 0:02:53]}  h6 {[%clk 0:02:42]} 7. Nf3 {[%clk 0:02:47]}  Nge7 {[%clk 0:02:36]} 8. Be3 {[%clk 0:02:47]}  d6 {[%clk 0:02:33]} 9. Qd2 {[%clk 0:02:47]}  g5 {[%clk 0:02:31]} 10. c3 {[%clk 0:02:42]}  O-O {[%clk 0:02:10]} 11. d4 {[%clk 0:02:41]}  cxd4 {[%clk 0:02:05]} 12. cxd4 {[%clk 0:02:41]}  g4 {[%clk 0:01:48]} 13. Bxc6 {[%clk 0:02:32]}  Nxc6 {[%clk 0:01:40]} 14. Ne1 {[%clk 0:02:26]}  Qh4 {[%clk 0:01:27]} 15. d5 {[%clk 0:02:22]}  Nd4 {[%clk 0:01:24]} 16. Nc3 {[%clk 0:02:17]}  f5 {[%clk 0:01:21]} 17. g3 {[%clk 0:02:16]}  Qh3 {[%clk 0:01:13]} 18. f4 {[%clk 0:02:07]}  gxf3 {[%clk 0:01:07]} 19. Nxf3 {[%clk 0:02:01]}  Nxf3+ {[%clk 0:00:54]} 20. Rxf3 {[%clk 0:02:01]}  f4 {[%clk 0:00:55]} 21. Bf2 {[%clk 0:01:41]}  Bg4 {[%clk 0:00:52]} 22. Rd3 {[%clk 0:01:12]}  f3 {[%clk 0:00:50]} 23. Be3 {[%clk 0:01:10]}  f2+ {[%clk 0:00:42]} 24. Bxf2 {[%clk 0:01:09]}  Rf7 {[%clk 0:00:37]} 25. Rf1 {[%clk 0:00:18]}  Raf8 {[%clk 0:00:35]} 26. Nd1 {[%clk 0:00:19]}  Bxd1 {[%clk 0:00:29]} 27. Qxd1 {[%clk 0:00:17]}  h5 {[%clk 0:00:27]} 28. Qe2 {[%clk 0:00:14]}  Bh6 {[%clk 0:00:26]} 29. Rdd1 {[%clk 0:00:14]}  h4 {[%clk 0:00:22]} 30. Bxa7 {[%clk 0:00:14]}  hxg3 {[%clk 0:00:20]} 31. Rxf7 {[%clk 0:00:14]}  gxh2+ {[%clk 0:00:19]} 32. Qxh2 {[%clk 0:00:13]}  Qxh2+ {[%clk 0:00:11]} 33. Kxh2 {[%clk 0:00:14]}  Rxf7 {[%clk 0:00:12]} 34. Rg1+ {[%clk 0:00:13]}  Kh7 {[%clk 0:00:10]} 35. Rg2 {[%clk 0:00:12]}  b5 {[%clk 0:00:08]} 36. Bf2 {[%clk 0:00:11]}  Rc7 {[%clk 0:00:03]} 37. a3 {[%clk 0:00:11]}  Bf4+ {[%clk 0:00:03]} 38. Bg3 {[%clk 0:00:11]}  Bh6 {[%clk 0:00:02]} 39. Rf2 {[%clk 0:00:11]}  Rc1 {[%clk 0:00:01]} 40. Kg2 {[%clk 0:00:11]}  Kg6 {[%clk 0:00:01]} 41. Re2 {[%clk 0:00:11]}  Bg5 {[%clk 0:00:02]} 42. Bf2 {[%clk 0:00:12]}  Rb1 {[%clk 0:00:02]} 43. Be1 {[%clk 0:00:11]}  Kf6 {[%clk 0:00:03]} 44. Bc3 {[%clk 0:00:12]}  Ke7 {[%clk 0:00:03]} 45. Rf2 {[%clk 0:00:12]}  Bf4 {[%clk 0:00:04]} 46. Kf3 {[%clk 0:00:12]}  Rh1 {[%clk 0:00:03]} 47. Rg2 {[%clk 0:00:13]}  Rh3+ {[%clk 0:00:03]} 48. Ke2 {[%clk 0:00:13]}  Re3+ {[%clk 0:00:04]} 49. Kd1 {[%clk 0:00:14]}  Rxe4 {[%clk 0:00:03]} 50. Rg7+ {[%clk 0:00:14]}  Kf6 {[%clk 0:00:04]} 51. Rb7 {[%clk 0:00:15]}  Re3 {[%clk 0:00:02]} 52. Rxb5 {[%clk 0:00:15]}  Kf5 {[%clk 0:00:02]} 53. a4 {[%clk 0:00:16]}  Rg3 {[%clk 0:00:01]} 54. a5 {[%clk 0:00:16]}  Rg7 {[%clk 0:00:02]} 55. a6 {[%clk 0:00:16]}  Ra7 {[%clk 0:00:02]} 56. Ra5 {[%clk 0:00:17]}  Ke4 {[%clk 0:00:03]} 57. Be1 {[%clk 0:00:17]}  Be3 {[%clk 0:00:03]} 58. Ke2 {[%clk 0:00:17]}  Bc5 {[%clk 0:00:04]} 59. b4 {[%clk 0:00:17]}  Bb6 {[%clk 0:00:03]} 60. Ra4 {[%clk 0:00:17]}  Kxd5 {[%clk 0:00:04]} 61. b5 {[%clk 0:00:18]}  Kc5 {[%clk 0:00:04]} 62. Rb4 {[%clk 0:00:18]}  Ba5 {[%clk 0:00:03]} 63. b6 {[%clk 0:00:17]}  Bxb6 {[%clk 0:00:02]} 64. Rxb6 {[%clk 0:00:16]}  Kxb6 {[%clk 0:00:03]} 65. Bf2+ {[%clk 0:00:16]}  Kxa6 {[%clk 0:00:04]} 66. Kd3 {[%clk 0:00:16]}  d5 {[%clk 0:00:04]} 67. Bg3 {[%clk 0:00:15]}  Re7 {[%clk 0:00:04]} 68. Bh4 {[%clk 0:00:15]}  Re6 {[%clk 0:00:04]} 69. Bd8 {[%clk 0:00:15]}  Kb5 {[%clk 0:00:05]} 70. Bc7 {[%clk 0:00:15]}  Kc5 {[%clk 0:00:06]} 71. Bb8 {[%clk 0:00:15]}  e4+ {[%clk 0:00:07]} 72. Ke3 {[%clk 0:00:15]}  Kc4 {[%clk 0:00:08]} 73. Ba7 {[%clk 0:00:15]}  Rg6 {[%clk 0:00:06]} 74. Kf2 {[%clk 0:00:15]}  Rg4 {[%clk 0:00:06]} 75. Bb8 {[%clk 0:00:15]}  Rg8 {[%clk 0:00:05]} 76. Bc7 {[%clk 0:00:15]}  Rc8 {[%clk 0:00:05]} 77. Be5 {[%clk 0:00:15]}  Kd3 {[%clk 0:00:06]} 78. Ke1 {[%clk 0:00:15]}  Rc2 {[%clk 0:00:07]} 79. Kd1 {[%clk 0:00:15]}  Re2 {[%clk 0:00:08]} 80. Bf4 {[%clk 0:00:15]}  d4 {[%clk 0:00:09]} 81. Be5 {[%clk 0:00:13]}  e3 {[%clk 0:00:10]} 82. Bg3 {[%clk 0:00:13]}  Rd2+ {[%clk 0:00:10]} 83. Ke1 {[%clk 0:00:13]}  Rg2 {[%clk 0:00:11]} 0-1


[Site "https://www.chess.com"]

[Event "Titled Tuesday Blitz December 27 Early 2022"]
[White "Alex_Sahakyan2006"]
[Black "Jimenez Almeida, Luis David"]
[BlackFideId "22242244"]
[WhiteElo "2629"]
[BlackElo "2242"]
[Result "1-0"]
[Round "09"]
[TimeControl "180+2"]
[Date "2022.12.27"]
[WhiteClock "0:00:07"]
[BlackClock "0:00:03"]

1. e4 {[%clk 0:02:56]}  Nf6 {[%clk 0:02:59]} 2. Nc3 {[%clk 0:02:52]}  d5 {[%clk 0:02:59]} 3. e5 {[%clk 0:02:49]}  d4 {[%clk 0:02:58]} 4. exf6 {[%clk 0:02:49]}  dxc3 {[%clk 0:02:59]} 5. fxg7 {[%clk 0:02:34]}  cxd2+ {[%clk 0:02:58]} 6. Qxd2 {[%clk 0:02:34]}  Qxd2+ {[%clk 0:02:58]} 7. Bxd2 {[%clk 0:02:34]}  Bxg7 {[%clk 0:02:59]} 8. O-O-O {[%clk 0:02:34]}  O-O {[%clk 0:02:58]} 9. Nf3 {[%clk 0:02:29]}  b6 {[%clk 0:02:51]} 10. Bf4 {[%clk 0:02:27]}  c5 {[%clk 0:02:47]} 11. Bd3 {[%clk 0:02:24]}  Bb7 {[%clk 0:02:47]} 12. Ng5 {[%clk 0:02:23]}  h6 {[%clk 0:02:38]} 13. Bh7+ {[%clk 0:02:15]}  Kh8 {[%clk 0:02:37]} 14. Be4 {[%clk 0:02:16]}  Bxe4 {[%clk 0:02:03]} 15. Nxe4 {[%clk 0:02:13]}  Nc6 {[%clk 0:02:03]} 16. c3 {[%clk 0:02:09]}  f5 {[%clk 0:02:02]} 17. Ng3 {[%clk 0:02:04]}  e5 {[%clk 0:01:59]} 18. Bd2 {[%clk 0:02:04]}  Rad8 {[%clk 0:01:58]} 19. Nh5 {[%clk 0:02:01]}  Rf7 {[%clk 0:01:47]} 20. f3 {[%clk 0:01:55]}  Rfd7 {[%clk 0:01:45]} 21. Be3 {[%clk 0:01:44]}  Kh7 {[%clk 0:01:34]} 22. g4 {[%clk 0:01:37]}  f4 {[%clk 0:01:30]} 23. Bf2 {[%clk 0:01:34]}  Kg6 {[%clk 0:01:30]} 24. Bh4 {[%clk 0:01:29]}  Rxd1+ {[%clk 0:01:08]} 25. Rxd1 {[%clk 0:01:30]}  Rxd1+ {[%clk 0:01:08]} 26. Kxd1 {[%clk 0:01:30]}  Bf8 {[%clk 0:01:07]} 27. Ke2 {[%clk 0:01:28]}  c4 {[%clk 0:01:01]} 28. b3 {[%clk 0:01:09]}  b5 {[%clk 0:01:01]} 29. Bf2 {[%clk 0:01:07]}  a5 {[%clk 0:00:53]} 30. bxc4 {[%clk 0:01:07]}  bxc4 {[%clk 0:00:53]} 31. a4 {[%clk 0:01:08]}  Be7 {[%clk 0:00:48]} 32. Bb6 {[%clk 0:01:02]}  Bd8 {[%clk 0:00:43]} 33. Bc5 {[%clk 0:00:56]}  Be7 {[%clk 0:00:41]} 34. Bb6 {[%clk 0:00:56]}  Bd8 {[%clk 0:00:41]} 35. Bg1 {[%clk 0:00:56]}  Kf7 {[%clk 0:00:38]} 36. Bc5 {[%clk 0:00:48]}  Be7 {[%clk 0:00:36]} 37. Bb6 {[%clk 0:00:46]}  Bd8 {[%clk 0:00:36]} 38. Bf2 {[%clk 0:00:42]}  Be7 {[%clk 0:00:36]} 39. Be1 {[%clk 0:00:23]}  Kg6 {[%clk 0:00:35]} 40. Bd2 {[%clk 0:00:21]}  Bc5 {[%clk 0:00:34]} 41. Be1 {[%clk 0:00:19]}  Ne7 {[%clk 0:00:34]} 42. Bh4 {[%clk 0:00:17]}  Nd5 {[%clk 0:00:33]} 43. Kd2 {[%clk 0:00:15]}  Ba3 {[%clk 0:00:30]} 44. Bd8 {[%clk 0:00:14]}  Ne3 {[%clk 0:00:20]} 45. Bxa5 {[%clk 0:00:11]}  Nf1+ {[%clk 0:00:20]} 46. Ke2 {[%clk 0:00:10]}  Nxh2 {[%clk 0:00:21]} 47. Kf2 {[%clk 0:00:11]}  e4 {[%clk 0:00:20]} 48. Nxf4+ {[%clk 0:00:09]}  Kg5 {[%clk 0:00:20]} 49. Bd8+ {[%clk 0:00:06]}  Kxf4 {[%clk 0:00:17]} 50. Bc7+ {[%clk 0:00:06]}  Kg5 {[%clk 0:00:16]} 51. Bxh2 {[%clk 0:00:07]}  Bc5+ {[%clk 0:00:15]} 52. Ke2 {[%clk 0:00:07]}  e3 {[%clk 0:00:09]} 53. Be5 {[%clk 0:00:06]}  h5 {[%clk 0:00:08]} 54. gxh5 {[%clk 0:00:06]}  Kxh5 {[%clk 0:00:08]} 55. Bf4 {[%clk 0:00:07]}  Ba3 {[%clk 0:00:02]} 56. Bxe3 {[%clk 0:00:07]}  Kg6 {[%clk 0:00:03]} 57. a5 {[%clk 0:00:07]}  Kf5 {[%clk 0:00:03]} 58. a6 {[%clk 0:00:07]} 1-0


[Site "https://www.chess.com"]

[Event "Titled Tuesday Blitz December 27 Early 2022"]
[White "Araujo, Everson De Moura"]
[Black "Pinheiro, Iung Alicio de O."]
[WhiteFideId "22737197"]
[BlackFideId "2104350"]
[WhiteElo "1944"]
[BlackElo "2306"]
[Result "0-1"]
[Round "09"]
[TimeControl "180+2"]
[Date "2022.12.27"]
[WhiteClock "0:00:03"]
[BlackClock "0:00:48"]

1. c4 {[%clk 0:01:54]}  c5 {[%clk 0:02:49]} 2. Nc3 {[%clk 0:01:53]}  g6 {[%clk 0:02:49]} 3. g3 {[%clk 0:01:54]}  Bg7 {[%clk 0:02:50]} 4. Bg2 {[%clk 0:01:55]}  Nc6 {[%clk 0:02:50]} 5. e4 {[%clk 0:01:55]}  d6 {[%clk 0:02:51]} 6. Nge2 {[%clk 0:01:53]}  h5 {[%clk 0:02:52]} 7. h4 {[%clk 0:01:51]}  Nf6 {[%clk 0:02:46]} 8. d3 {[%clk 0:01:51]}  a6 {[%clk 0:02:45]} 9. Be3 {[%clk 0:01:49]}  Rb8 {[%clk 0:02:46]} 10. a4 {[%clk 0:01:48]}  Ng4 {[%clk 0:02:46]} 11. Bg5 {[%clk 0:01:44]}  Bd7 {[%clk 0:02:33]} 12. f3 {[%clk 0:01:40]}  Nge5 {[%clk 0:02:29]} 13. Be3 {[%clk 0:01:36]}  Nb4 {[%clk 0:02:25]} 14. Nc1 {[%clk 0:01:28]}  b5 {[%clk 0:02:14]} 15. axb5 {[%clk 0:01:26]}  axb5 {[%clk 0:02:14]} 16. Qe2 {[%clk 0:00:34]}  bxc4 {[%clk 0:01:35]} 17. dxc4 {[%clk 0:00:35]}  Be6 {[%clk 0:01:36]} 18. Nd5 {[%clk 0:00:31]}  Nec6 {[%clk 0:01:28]} 19. O-O {[%clk 0:00:22]}  Nd4 {[%clk 0:01:23]} 20. Bxd4 {[%clk 0:00:17]}  Bxd4+ {[%clk 0:01:22]} 21. Kh2 {[%clk 0:00:16]}  Nxd5 {[%clk 0:01:13]} 22. cxd5 {[%clk 0:00:16]}  Rxb2 {[%clk 0:01:09]} 23. Qa6 {[%clk 0:00:12]}  Bd7 {[%clk 0:01:07]} 24. Nd3 {[%clk 0:00:09]}  Rb6 {[%clk 0:01:02]} 25. Qa3 {[%clk 0:00:08]}  Bxa1 {[%clk 0:00:55]} 26. Qxa1 {[%clk 0:00:08]}  O-O {[%clk 0:00:55]} 27. e5 {[%clk 0:00:07]}  Bf5 {[%clk 0:00:53]} 28. Nf4 {[%clk 0:00:05]}  dxe5 {[%clk 0:00:50]} 29. Qxe5 {[%clk 0:00:06]}  Qd6 {[%clk 0:00:51]} 30. Qc3 {[%clk 0:00:05]}  Rc8 {[%clk 0:00:48]} 31. Ra1 {[%clk 0:00:03]}  c4 {[%clk 0:00:48]} 0-1


[Site "https://www.chess.com"]

[Event "Titled Tuesday Blitz December 27 Early 2022"]
[White "Ayushh, Ravikumar"]
[Black "Bintang, Rasyid A. Hidayat"]
[WhiteFideId "35039482"]
[BlackFideId "7105355"]
[WhiteElo "2032"]
[BlackElo "1820"]
[Result "0-1"]
[Round "09"]
[TimeControl "180+2"]
[Date "2022.12.27"]
[WhiteClock "0:00:03"]
[BlackClock "0:00:18"]

1. e4 {[%clk 0:02:44]}  c5 {[%clk 0:02:59]} 2. Nf3 {[%clk 0:02:44]}  a6 {[%clk 0:02:59]} 3. d4 {[%clk 0:02:45]}  cxd4 {[%clk 0:02:59]} 4. Nxd4 {[%clk 0:02:45]}  e5 {[%clk 0:02:59]} 5. Nf5 {[%clk 0:02:37]}  d5 {[%clk 0:02:58]} 6. Ne3 {[%clk 0:02:37]}  dxe4 {[%clk 0:02:53]} 7. Qxd8+ {[%clk 0:02:36]}  Kxd8 {[%clk 0:02:54]} 8. Nc3 {[%clk 0:02:32]}  f5 {[%clk 0:02:50]} 9. Ned5 {[%clk 0:02:32]}  Nf6 {[%clk 0:02:41]} 10. Bg5 {[%clk 0:02:16]}  Nd7 {[%clk 0:02:33]} 11. O-O-O {[%clk 0:02:08]}  Be7 {[%clk 0:02:33]} 12. Nxe7 {[%clk 0:02:06]}  Kxe7 {[%clk 0:02:34]} 13. Nd5+ {[%clk 0:02:07]}  Kf7 {[%clk 0:02:33]} 14. Nc7 {[%clk 0:02:06]}  Ra7 {[%clk 0:02:24]} 15. Bc4+ {[%clk 0:01:24]}  Kg6 {[%clk 0:02:23]} 16. Be3 {[%clk 0:01:24]}  b6 {[%clk 0:02:22]} 17. Nd5 {[%clk 0:01:21]}  f4 {[%clk 0:02:17]} 18. Bxb6 {[%clk 0:01:19]}  Nxb6 {[%clk 0:02:13]} 19. Nxb6 {[%clk 0:01:14]}  Bf5 {[%clk 0:01:57]} 20. Nd5 {[%clk 0:01:10]}  Rc8 {[%clk 0:01:54]} 21. Bb3 {[%clk 0:00:38]}  a5 {[%clk 0:01:44]} 22. a4 {[%clk 0:00:32]}  Ng4 {[%clk 0:01:44]} 23. Rd2 {[%clk 0:00:27]}  e3 {[%clk 0:01:20]} 24. fxe3 {[%clk 0:00:28]}  fxe3 {[%clk 0:01:21]} 25. Re2 {[%clk 0:00:27]}  Bd3 {[%clk 0:01:20]} 26. Rxe3 {[%clk 0:00:27]}  Nxe3 {[%clk 0:01:20]} 27. Nxe3 {[%clk 0:00:27]}  Rb7 {[%clk 0:01:07]} 28. Rd1 {[%clk 0:00:23]}  Rxb3 {[%clk 0:01:06]} 29. Kb1 {[%clk 0:00:18]}  Bxc2+ {[%clk 0:00:48]} 30. Nxc2 {[%clk 0:00:17]}  Rcb8 {[%clk 0:00:45]} 31. Rd5 {[%clk 0:00:12]}  Rxb2+ {[%clk 0:00:44]} 32. Kc1 {[%clk 0:00:12]}  Rb1+ {[%clk 0:00:45]} 33. Kd2 {[%clk 0:00:12]}  Rg1 {[%clk 0:00:40]} 34. g3 {[%clk 0:00:10]}  Rg2+ {[%clk 0:00:40]} 35. Kd3 {[%clk 0:00:10]}  Rb3+ {[%clk 0:00:38]} 36. Kc4 {[%clk 0:00:10]}  Rb2 {[%clk 0:00:34]} 37. Ne3 {[%clk 0:00:11]}  Rxh2 {[%clk 0:00:29]} 38. Rxa5 {[%clk 0:00:07]}  e4 {[%clk 0:00:29]} 39. Kd4 {[%clk 0:00:07]}  Rb4+ {[%clk 0:00:28]} 40. Kc3 {[%clk 0:00:06]}  Rb6 {[%clk 0:00:26]} 41. Re5 {[%clk 0:00:05]}  Ra2 {[%clk 0:00:23]} 42. a5 {[%clk 0:00:05]}  Ra3+ {[%clk 0:00:24]} 43. Kd4 {[%clk 0:00:03]}  Rb4+ {[%clk 0:00:21]} 44. Nc4 {[%clk 0:00:03]}  Raa4 {[%clk 0:00:21]} 45. Rc5 {[%clk 0:00:03]}  e3 {[%clk 0:00:22]} 46. Kd3 {[%clk 0:00:03]}  Rxc4 {[%clk 0:00:18]} 47. Rxc4 {[%clk 0:00:03]}  Rxc4 {[%clk 0:00:18]} 0-1


[Site "https://www.chess.com"]

[Event "Titled Tuesday Blitz December 27 Early 2022"]
[White "Babazada, Khazar"]
[Black "Aravindh, Chithambaram VR."]
[WhiteFideId "13413554"]
[BlackFideId "5072786"]
[WhiteElo "2474"]
[BlackElo "2633"]
[Result "1-0"]
[Round "09"]
[TimeControl "180+2"]
[Date "2022.12.27"]
[WhiteClock "0:00:10"]
[BlackClock "0:00:01"]

1. e4 {[%clk 0:03:00]}  Nc6 {[%clk 0:03:00]} 2. Nf3 {[%clk 0:02:59]}  d6 {[%clk 0:02:59]} 3. d4 {[%clk 0:02:56]}  Nf6 {[%clk 0:03:00]} 4. Nc3 {[%clk 0:02:55]}  g6 {[%clk 0:03:00]} 5. h3 {[%clk 0:02:53]}  Bg7 {[%clk 0:03:00]} 6. Be3 {[%clk 0:02:54]}  O-O {[%clk 0:03:00]} 7. Qd2 {[%clk 0:02:52]}  e5 {[%clk 0:03:00]} 8. d5 {[%clk 0:02:49]}  Ne7 {[%clk 0:02:59]} 9. O-O-O {[%clk 0:02:43]}  Nh5 {[%clk 0:02:41]} 10. g4 {[%clk 0:02:41]}  Nf4 {[%clk 0:02:40]} 11. Ne2 {[%clk 0:02:27]}  f5 {[%clk 0:02:26]} 12. gxf5 {[%clk 0:02:24]}  gxf5 {[%clk 0:02:26]} 13. Ng5 {[%clk 0:01:38]}  Nxe2+ {[%clk 0:02:13]} 14. Qxe2 {[%clk 0:01:38]}  f4 {[%clk 0:02:03]} 15. Bd2 {[%clk 0:01:38]}  Rf6 {[%clk 0:01:38]} 16. h4 {[%clk 0:01:35]}  f3 {[%clk 0:01:33]} 17. Qc4 {[%clk 0:01:17]}  Ng6 {[%clk 0:01:31]} 18. Bh3 {[%clk 0:01:17]}  Bxh3 {[%clk 0:01:23]} 19. Rxh3 {[%clk 0:01:17]}  Qd7 {[%clk 0:01:18]} 20. Rg1 {[%clk 0:01:16]}  Bh6 {[%clk 0:00:47]} 21. h5 {[%clk 0:01:07]}  Bxg5 {[%clk 0:00:16]} 22. Bxg5 {[%clk 0:01:08]}  Qxh3 {[%clk 0:00:16]} 23. Bxf6 {[%clk 0:01:09]}  Qg2 {[%clk 0:00:13]} 24. Rd1 {[%clk 0:00:55]}  Rf8 {[%clk 0:00:12]} 25. hxg6 {[%clk 0:00:48]}  Rxf6 {[%clk 0:00:05]} 26. gxh7+ {[%clk 0:00:47]}  Kxh7 {[%clk 0:00:06]} 27. Qxc7+ {[%clk 0:00:48]}  Kg6 {[%clk 0:00:06]} 28. Qc8 {[%clk 0:00:40]}  Kg7 {[%clk 0:00:04]} 29. Qxb7+ {[%clk 0:00:38]}  Rf7 {[%clk 0:00:04]} 30. Qb8 {[%clk 0:00:34]}  Qxf2 {[%clk 0:00:04]} 31. Rh1 {[%clk 0:00:34]}  Qe3+ {[%clk 0:00:03]} 32. Kb1 {[%clk 0:00:35]}  Rf8 {[%clk 0:00:03]} 33. Qxd6 {[%clk 0:00:17]}  Qg5 {[%clk 0:00:03]} 34. Qd7+ {[%clk 0:00:15]}  Rf7 {[%clk 0:00:02]} 35. Qh3 {[%clk 0:00:15]}  Kf8 {[%clk 0:00:01]} 36. Qc8+ {[%clk 0:00:15]}  Ke7 {[%clk 0:00:01]} 37. d6+ {[%clk 0:00:12]}  Kf6 {[%clk 0:00:01]} 38. d7 {[%clk 0:00:10]} 1-0


[Site "https://www.chess.com"]

[Event "Titled Tuesday Blitz December 27 Early 2022"]
[White "Bashirli, Saadat"]
[Black "Kahlert, Thomas"]
[WhiteFideId "13429990"]
[BlackFideId "4625242"]
[WhiteElo "1571"]
[BlackElo "2144"]
[Result "1/2-1/2"]
[Round "09"]
[TimeControl "180+2"]
[Date "2022.12.27"]
[WhiteClock "0:00:11"]
[BlackClock "0:00:20"]

1. d4 {[%clk 0:03:00]}  Nf6 {[%clk 0:02:57]} 2. c4 {[%clk 0:02:59]}  c5 {[%clk 0:02:52]} 3. d5 {[%clk 0:02:57]}  e5 {[%clk 0:02:51]} 4. Nc3 {[%clk 0:02:56]}  d6 {[%clk 0:02:51]} 5. Qc2 {[%clk 0:02:53]}  Be7 {[%clk 0:02:51]} 6. e4 {[%clk 0:02:50]}  O-O {[%clk 0:02:50]} 7. Bg5 {[%clk 0:02:48]}  Nxd5 {[%clk 0:02:41]} 8. Bxe7 {[%clk 0:02:43]}  Nxe7 {[%clk 0:02:40]} 9. Rd1 {[%clk 0:02:40]}  Nbc6 {[%clk 0:02:39]} 10. Nf3 {[%clk 0:02:36]}  Nd4 {[%clk 0:02:40]} 11. Nxd4 {[%clk 0:02:35]}  exd4 {[%clk 0:02:37]} 12. Nd5 {[%clk 0:02:33]}  Nxd5 {[%clk 0:02:36]} 13. exd5 {[%clk 0:02:31]}  Re8+ {[%clk 0:02:36]} 14. Be2 {[%clk 0:02:31]}  Qa5+ {[%clk 0:02:35]} 15. Rd2 {[%clk 0:02:30]}  Bd7 {[%clk 0:02:29]} 16. O-O {[%clk 0:02:25]}  Re7 {[%clk 0:02:18]} 17. Bd3 {[%clk 0:02:20]}  g6 {[%clk 0:02:17]} 18. a3 {[%clk 0:02:06]}  Rae8 {[%clk 0:02:15]} 19. Rdd1 {[%clk 0:01:58]}  Kg7 {[%clk 0:02:06]} 20. Qb1 {[%clk 0:01:46]}  f5 {[%clk 0:01:52]} 21. b4 {[%clk 0:01:42]}  Qxa3 {[%clk 0:01:46]} 22. bxc5 {[%clk 0:01:41]}  dxc5 {[%clk 0:01:38]} 23. Qxb7 {[%clk 0:01:32]}  Ba4 {[%clk 0:01:37]} 24. Qa6 {[%clk 0:01:32]}  Qb3 {[%clk 0:01:26]} 25. Rd2 {[%clk 0:01:23]}  Qc3 {[%clk 0:01:16]} 26. d6 {[%clk 0:01:02]}  Qxd2 {[%clk 0:01:15]} 27. dxe7 {[%clk 0:01:02]}  Rxe7 {[%clk 0:01:10]} 28. Bxf5 {[%clk 0:00:55]}  Re1 {[%clk 0:00:45]} 29. Qxa7+ {[%clk 0:00:48]}  Kh6 {[%clk 0:00:44]} 30. Qxa4 {[%clk 0:00:39]}  Rxf1+ {[%clk 0:00:43]} 31. Kxf1 {[%clk 0:00:38]}  Qc1+ {[%clk 0:00:36]} 32. Ke2 {[%clk 0:00:36]}  gxf5 {[%clk 0:00:32]} 33. Qc6+ {[%clk 0:00:35]}  Kg5 {[%clk 0:00:32]} 34. h4+ {[%clk 0:00:26]}  Kxh4 {[%clk 0:00:32]} 35. Qf6+ {[%clk 0:00:25]}  Qg5 {[%clk 0:00:30]} 36. g3+ {[%clk 0:00:24]}  Kh5 {[%clk 0:00:30]} 37. Qf7+ {[%clk 0:00:23]}  Qg6 {[%clk 0:00:30]} 38. Qe7 {[%clk 0:00:22]}  Kh6 {[%clk 0:00:27]} 39. Qxc5 {[%clk 0:00:20]}  Qe6+ {[%clk 0:00:26]} 40. Kd3 {[%clk 0:00:20]}  Qe4+ {[%clk 0:00:26]} 41. Kd2 {[%clk 0:00:19]}  d3 {[%clk 0:00:24]} 42. Qe3+ {[%clk 0:00:18]}  Kg6 {[%clk 0:00:22]} 43. Qxe4 {[%clk 0:00:17]}  fxe4 {[%clk 0:00:22]} 44. Ke3 {[%clk 0:00:17]}  Kf5 {[%clk 0:00:22]} 45. f3 {[%clk 0:00:17]}  exf3 {[%clk 0:00:19]} 46. Kxd3 {[%clk 0:00:15]}  Ke5 {[%clk 0:00:19]} 47. Ke3 {[%clk 0:00:16]}  f2 {[%clk 0:00:18]} 48. Kxf2 {[%clk 0:00:16]}  Kd4 {[%clk 0:00:19]} 49. Kf3 {[%clk 0:00:15]}  Kxc4 {[%clk 0:00:19]} 50. Kg4 {[%clk 0:00:15]}  Kd4 {[%clk 0:00:19]} 51. Kh5 {[%clk 0:00:16]}  Ke4 {[%clk 0:00:19]} 52. g4 {[%clk 0:00:12]}  Kf4 {[%clk 0:00:19]} 53. g5 {[%clk 0:00:12]}  Kf5 {[%clk 0:00:19]} 54. Kh6 {[%clk 0:00:11]}  Kg4 {[%clk 0:00:19]} 55. Kxh7 {[%clk 0:00:11]}  Kxg5 {[%clk 0:00:20]} 1/2-1/2


[Site "https://www.chess.com"]

[Event "Titled Tuesday Blitz December 27 Early 2022"]
[White "Belozerov, Andrei"]
[Black "Srebrnic, Marko"]
[WhiteFideId "4120213"]
[BlackFideId "14603616"]
[WhiteElo "2461"]
[BlackElo "2366"]
[Result "1-0"]
[Round "09"]
[TimeControl "180+2"]
[Date "2022.12.27"]
[WhiteClock "0:00:34"]
[BlackClock "0:00:04"]

1. d4 {[%clk 0:02:52]}  Nf6 {[%clk 0:02:59]} 2. c4 {[%clk 0:02:51]}  g6 {[%clk 0:02:59]} 3. g3 {[%clk 0:02:51]}  d6 {[%clk 0:02:59]} 4. Bg2 {[%clk 0:02:49]}  Bg7 {[%clk 0:03:00]} 5. Nf3 {[%clk 0:02:49]}  O-O {[%clk 0:03:00]} 6. O-O {[%clk 0:02:50]}  Nbd7 {[%clk 0:03:00]} 7. Nc3 {[%clk 0:02:50]}  a6 {[%clk 0:03:00]} 8. h3 {[%clk 0:02:47]}  e5 {[%clk 0:03:00]} 9. Qc2 {[%clk 0:02:43]}  Qe7 {[%clk 0:02:47]} 10. e4 {[%clk 0:02:36]}  b5 {[%clk 0:02:40]} 11. cxb5 {[%clk 0:02:27]}  axb5 {[%clk 0:02:41]} 12. Bg5 {[%clk 0:02:15]}  c6 {[%clk 0:02:38]} 13. Rfd1 {[%clk 0:02:08]}  h6 {[%clk 0:02:36]} 14. Be3 {[%clk 0:02:06]}  b4 {[%clk 0:02:28]} 15. dxe5 {[%clk 0:01:56]}  Nxe5 {[%clk 0:02:24]} 16. Nxe5 {[%clk 0:01:55]}  Qxe5 {[%clk 0:02:18]} 17. Na4 {[%clk 0:01:44]}  Nxe4 {[%clk 0:02:17]} 18. Bd4 {[%clk 0:01:38]}  Qb5 {[%clk 0:02:05]} 19. Bxg7 {[%clk 0:01:37]}  Kxg7 {[%clk 0:02:05]} 20. Bxe4 {[%clk 0:01:30]}  Qxa4 {[%clk 0:02:05]} 21. Qxa4 {[%clk 0:01:28]}  Rxa4 {[%clk 0:02:05]} 22. Bxc6 {[%clk 0:01:24]}  Ra6 {[%clk 0:02:04]} 23. Bb5 {[%clk 0:01:22]}  Ra5 {[%clk 0:02:01]} 24. Bf1 {[%clk 0:01:20]}  Be6 {[%clk 0:01:59]} 25. Rxd6 {[%clk 0:01:20]}  Rc8 {[%clk 0:00:59]} 26. Rd4 {[%clk 0:01:04]}  Rc2 {[%clk 0:00:53]} 27. Rxb4 {[%clk 0:01:04]}  Rf5 {[%clk 0:00:50]} 28. Bd3 {[%clk 0:00:54]}  Rfxf2 {[%clk 0:00:49]} 29. Bxc2 {[%clk 0:00:54]}  Rxc2 {[%clk 0:00:50]} 30. a4 {[%clk 0:00:44]}  Bd5 {[%clk 0:00:44]} 31. Ra3 {[%clk 0:00:40]}  g5 {[%clk 0:00:26]} 32. a5 {[%clk 0:00:38]}  h5 {[%clk 0:00:16]} 33. a6 {[%clk 0:00:38]}  f5 {[%clk 0:00:12]} 34. a7 {[%clk 0:00:37]}  Ba8 {[%clk 0:00:10]} 35. Rb8 {[%clk 0:00:36]}  Rc1+ {[%clk 0:00:04]} 36. Kf2 {[%clk 0:00:35]}  Rc2+ {[%clk 0:00:05]} 37. Ke1 {[%clk 0:00:35]}  Bf3 {[%clk 0:00:04]} 38. a8=Q {[%clk 0:00:34]} 1-0


[Site "https://www.chess.com"]